lending/lending_fUSD_20251124
["ID","MTS","AMOUNT","RATE_DAILY","PERIOD"]
[394802596,1763967041424,-500.0,0.00035673,5]
[394802597,1763967041435,-385.64,0.0003589,8]
[394802598,1763967041445,-473.89,0.0003589,8]
[394802599,1763967041454,-493.04,0.0003589,8]
[394802600,1763967041464,-500.0,0.0003589,8]
[394802601,1763967041474,-608.64,0.0003589,8]
[394802602,1763967041483,-500.0,0.0003589,8]
[394802603,1763967041491,-356.95,0.0003589,8]
[394802604,1763967041501,-500.0,0.0003589,8]
[394802605,1763967041510,-422.97,0.0003589,8]
[394802606,1763967041519,-410.39,0.0003589,8]
[394802607,1763967041528,-500.0,0.0003589,8]
[394802608,1763967041538,-500.0,0.0003589,8]
[394802609,1763967041547,-500.0,0.0003589,8]
[394802610,1763967041556,-500.0,0.0003589,8]
[394802611,1763967041565,-897.72,0.0003589,8]
[394802612,1763967041575,-415.64911437,0.0003589,8]
[394802613,1763967041584,-688.79,0.0003589,14]
[394802614,1763967041593,-8722.46086745,0.00036083,2]
[394802615,1763967041602,-361.4492085,0.00036084,2]
[394802616,1763967041611,-153.84824977,0.00036164,8]
[394802617,1763967041621,-187.01,0.00036164,8]
[394802618,1763967041630,-500.0,0.00036164,8]
[394802619,1763967041639,-500.0,0.00036164,8]
[394802620,1763967041649,-500.0,0.00036164,8]
[394802621,1763967041658,-500.0,0.00036164,8]
[394802622,1763967041668,-500.0,0.00036164,8]
[394802623,1763967041677,-897.72,0.00036164,8]
[394802624,1763967041687,-688.79,0.00036164,14]
[394802625,1763967041696,-150.0,0.00036301,2]
[394802626,1763967041705,-3264.26574078,0.00036373,2]
[394802627,1763967041715,-1000.0,0.00036375,2]
[394802628,1763967041724,-229.98139544,0.00036438,8]
[394802629,1763967041733,-458.19166373,0.00036438,8]
[394802630,1763967041742,-215.61813076,0.00036438,8]
[394802631,1763967041752,-500.0,0.00036438,8]
[394802632,1763967041763,-500.0,0.00036438,8]
[394802633,1763967041773,-897.72,0.00036438,8]
[394802634,1763967041782,-688.79,0.00036438,14]
[394802635,1763967041792,-500.0,0.00036468,8]
[394802636,1763967041802,-507.28686113,0.00036468,8]
[394802637,1763967041811,-500.0,0.00036468,8]
[394802638,1763967041821,-500.0,0.00036468,7]
[394802639,1763967041830,-504.83361039,0.00036468,8]
[394802640,1763967041840,-500.0,0.00036468,8]
[394802641,1763967041850,-506.33195404,0.00036468,8]
[394802642,1763967041860,-500.0,0.00036468,8]
[394802643,1763967041869,-500.0,0.00036468,8]
[394802644,1763967041878,-529.07468476,0.00036468,8]
[394802645,1763967041887,-510.16491401,0.00036468,8]
[394802646,1763967041897,-503.273257,0.00036468,8]
[394802647,1763967041906,-503.59396635,0.00036468,8]
[394802648,1763967041916,-546.58379002,0.00036468,8]
[394802649,1763967041926,-505.41047958,0.00036468,8]
[394802650,1763967041935,-501.03749047,0.00036468,8]
[394802651,1763967041944,-506.22409433,0.00036468,8]
[394802652,1763967041953,-511.98663914,0.00036468,8]
[394802653,1763967041962,-500.0,0.00036468,8]
[394802654,1763967041971,-523.56126303,0.00036468,8]
[394802655,1763967041980,-500.0,0.00036468,8]
[394802656,1763967041989,-517.12713343,0.00036468,8]
[394802657,1763967042000,-499.51384263,0.00036468,8]
[394802658,1763967042009,-500.0,0.00036468,8]
[394802659,1763967042018,-500.0,0.00036468,8]
[394802660,1763967042028,-495.36013743,0.00036468,8]
[394802661,1763967042039,-500.0,0.00036468,8]
[394802662,1763967042049,-500.0,0.00036468,8]
[394802663,1763967042059,-500.0,0.00036468,8]
[394802664,1763967042068,-500.0,0.00036468,8]
[394802665,1763967042077,-500.0,0.00036468,8]
[394802666,1763967042087,-500.0,0.00036468,8]
[394802667,1763967042096,-500.0,0.00036468,8]
[394802668,1763967042105,-500.0,0.00036468,8]
[394802669,1763967042116,-196.92168843,0.00036468,8]
[394802670,1763967042125,-500.0,0.00036468,8]
[394802671,1763967042134,-500.0,0.00036468,8]
[394802672,1763967042144,-500.0,0.00036468,8]
[394802673,1763967042154,-500.0,0.00036468,8]
[394802674,1763967042164,-500.0,0.00036468,8]
[394802675,1763967042173,-500.0,0.00036468,8]
[394802676,1763967042183,-622.7678256,0.00036468,8]
[394802677,1763967042192,-365.54924458,0.00036468,8]
[394802678,1763967042202,-500.0,0.00036468,8]
[394802679,1763967042211,-500.0,0.00036468,8]
[394802680,1763967042220,-158.00126731,0.00036468,8]
[394802681,1763967042229,-505.37558662,0.00036468,8]
[394802682,1763967042239,-216.21517694,0.00036468,8]
[394802683,1763967042248,-255.15535476,0.00036468,8]
[394802684,1763967042258,-500.0,0.00036468,8]
[394802685,1763967042267,-503.21257311,0.00036473,5]
[394802686,1763967042277,-168.0,0.00036503,2]
[394802687,1763967042287,-504.0,0.00036571,2]
[394802688,1763967042301,-168.0,0.00036698,2]
[394802689,1763967042311,-500.0,0.00036712,8]
[394802690,1763967042319,-179.24547349,0.00036712,8]
[394802691,1763967042329,-897.72,0.00036712,8]
[394802692,1763967042343,-688.79,0.00036712,14]
[394802693,1763967042353,-500.0,0.00036742,8]
[394802694,1763967042362,-356.27,0.00036742,8]
[394802695,1763967042371,-502.72,0.00036742,8]
[394802696,1763967042380,-419.35968772,0.00036742,8]
[394802697,1763967042389,-500.0,0.00036742,8]
[394802698,1763967042400,-500.0,0.00036742,8]
[394802699,1763967042409,-500.0,0.00036742,8]
[394802700,1763967042419,-500.0,0.00036742,8]
[394802701,1763967042428,-345.0850071,0.00036742,8]
[394802702,1763967042437,-500.0,0.00036768,5]
[394802703,1763967042447,-14948.69,0.00036769,2]
[394802704,1763967042457,-437.5236953,0.00036773,5]
[394802705,1763967042467,-200.0,0.00036868,2]
[394802706,1763967042476,-3264.26574073,0.00036876,2]
[394802707,1763967042485,-150.0,0.00036888,7]
[394802708,1763967042494,-150.0,0.00036888,7]
[394802709,1763967042503,-150.0,0.00036888,7]
[394802710,1763967042513,-150.0,0.00036888,7]
[394802711,1763967042523,-361.6712,0.00036888,7]
[394802712,1763967042531,-500.0,0.00036986,8]
[394802713,1763967042540,-897.72,0.00036986,8]
[394802714,1763967042549,-688.79,0.00036986,14]
[394802715,1763967042559,-300.0,0.00037008,2]
[394802716,1763967042568,-507.81,0.00037016,8]
[394802717,1763967042577,-500.0,0.00037016,8]
[394802718,1763967042587,-500.0,0.00037016,8]
[394802719,1763967042596,-500.0,0.00037016,8]
[394802720,1763967042605,-500.0,0.00037016,8]
[394802721,1763967042614,-500.0,0.00037156,7]
[394802722,1763967042623,-500.0,0.00037156,7]
[394802723,1763967042632,-800.0,0.00037156,7]
[394802724,1763967042641,-500.0,0.0003726,8]
[394802725,1763967042653,-897.72,0.0003726,8]
[394802726,1763967042662,-688.79,0.0003726,14]
[394802727,1763967042672,-173.847373,0.00037265,15]
[394802728,1763967042682,-150.0,0.00037265,15]
[394802729,1763967042691,-610.92814633,0.0003729,8]
[394802730,1763967042701,-500.0,0.0003729,8]
[394802731,1763967042710,-538.9,0.0003729,8]
[394802732,1763967042719,-500.0,0.0003729,8]
[394802733,1763967042729,-3264.26574073,0.00037379,2]
[394802734,1763967042739,-166.75,0.00037389,2]
[394802735,1763967042748,-2500.0,0.00037434,2]
[394802736,1763967042758,-168.0,0.00037468,2]
[394802737,1763967042768,-500.0,0.000375,15]
[394802738,1763967042777,-500.0,0.00037534,8]
[394802739,1763967042788,-897.72,0.00037534,8]
[394802740,1763967042798,-500.0,0.00037534,120]
[394802741,1763967042807,-688.82646044,0.00037534,14]
[394802742,1763967042817,-500.0,0.00037564,8]
[394802743,1763967042826,-500.0,0.00037564,8]
[394802744,1763967042835,-331.0,0.00037587,2]
[394802745,1763967042845,-156.17328581,0.000376,79]
[394802746,1763967042854,-246.0,0.00037631,7]
[394802748,1763967042863,-639.78414144,0.00037636,2]
[394802750,1763967042872,-1000.0,0.000377,30]
[394802751,1763967042882,-168.0,0.00037712,7]
[394802752,1763967042890,-500.0,0.00037807,8]
[394802753,1763967042900,-1554.11,0.00037807,2]
[394802754,1763967042909,-500.0,0.00037808,8]
[394802755,1763967042919,-897.72,0.00037808,8]
[394802756,1763967042928,-500.0,0.00037808,120]
[394802757,1763967042937,-1990.44,0.00037808,120]
[394802758,1763967042946,-1990.44,0.00037836,120]
[394802759,1763967042955,-500.0,0.00037838,8]
[394802760,1763967042965,-500.0,0.00037838,8]
[394802761,1763967042974,-246.0,0.00037847,120]
[394802762,1763967042983,-1990.44,0.00037865,120]
[394802763,1763967042992,-168.0,0.00037877,2]
[394802764,1763967043001,-168.8354548,0.00037878,2]
[394802765,1763967043010,-3264.26574073,0.00037882,2]
[394802766,1763967043020,-168.0,0.00037883,2]
[394802767,1763967043029,-1990.44,0.00037896,120]
[394802768,1763967043039,-4764.06606914,0.000379,2]
[394802769,1763967043048,-168.49919826,0.000379,15]
[394802770,1763967043058,-168.0,0.00037907,7]
[394802771,1763967043068,-1990.44,0.00037928,120]
[394802772,1763967043078,-1990.44,0.00037962,120]
[394802773,1763967043088,-500.0,0.00037973,5]
[394802774,1763967043097,-505.95880114,0.00037973,5]
[394802775,1763967043106,-500.0,0.00037973,5]
[394802776,1763967043116,-417.61433429,0.00037973,2]
[394802777,1763967043125,-500.65345159,0.00037973,5]
[394802778,1763967043135,-505.39968933,0.00037973,5]
[394802779,1763967043146,-3250.33,0.00037975,8]
[394802780,1763967043155,-500.0,0.00037975,8]
[394802781,1763967043169,-500.0,0.00037975,8]
[394802782,1763967043180,-500.0,0.00037975,8]
[394802783,1763967043190,-500.0,0.00037975,8]
[394802784,1763967043200,-500.0,0.00037975,8]
[394802785,1763967043209,-500.0,0.00037975,8]
[394802786,1763967043219,-500.0,0.00037976,8]
[394802787,1763967043228,-500.0,0.00037976,8]
[394802788,1763967043238,-500.0,0.00037976,8]
[394802789,1763967043248,-1000.0,0.00037976,8]
[394802790,1763967043257,-500.0,0.00037976,8]
[394802791,1763967043267,-500.0,0.00037976,8]
[394802792,1763967043276,-500.0,0.00037976,8]
[394802793,1763967043286,-500.0,0.00037976,8]
[394802794,1763967043300,-500.0,0.00037976,8]
[394802795,1763967043310,-500.0,0.00037976,8]
[394802796,1763967043319,-500.0,0.00037976,8]
[394802797,1763967043329,-500.0,0.00037976,8]
[394802798,1763967043338,-500.0,0.00037976,8]
[394802799,1763967043347,-500.0,0.00037976,8]
[394802800,1763967043357,-500.0,0.00037976,2]
[394802801,1763967043367,-500.0,0.00037976,8]
[394802802,1763967043379,-500.0,0.00037976,8]
[394802803,1763967043388,-500.0,0.00037976,8]
[394802804,1763967043398,-500.0,0.00037976,8]
[394802805,1763967043407,-500.0,0.00037976,8]
[394802806,1763967043417,-578.64,0.00037976,8]
[394802807,1763967043427,-500.0,0.00037976,8]
[394802808,1763967043437,-500.0,0.00037976,8]
[394802809,1763967043446,-500.0,0.00037976,8]
[394802810,1763967043456,-500.0,0.00037976,8]
[394802811,1763967043465,-500.0,0.00037976,8]
[394802812,1763967043474,-258.26029809,0.00037976,8]
[394802813,1763967043484,-500.0,0.00037976,8]
[394802814,1763967043494,-500.0,0.00037976,8]
[394802815,1763967043503,-1251.15,0.00037976,8]
[394802816,1763967043512,-500.0,0.00037976,8]
[394802817,1763967043523,-500.0,0.00037976,8]
[394802818,1763967043532,-500.0,0.00037976,8]
[394802819,1763967043543,-500.0,0.00037976,8]
[394802820,1763967043552,-500.0,0.00037976,8]
[394802821,1763967043561,-500.0,0.00037976,8]
[394802822,1763967043571,-500.0,0.00037976,8]
[394802823,1763967043580,-500.0,0.00037976,8]
[394802824,1763967043589,-505.29812242,0.00037976,8]
[394802825,1763967043598,-390.45071494,0.00037976,8]
[394802826,1763967043607,-642.49,0.00037976,8]
[394802827,1763967043617,-500.0,0.00037976,8]
[394802828,1763967043626,-500.0,0.00037976,8]
[394802829,1763967043636,-500.0,0.00037976,8]
[394802830,1763967043646,-500.0,0.00037976,8]
[394802831,1763967043655,-500.0,0.00037976,8]
[394802832,1763967043665,-1813.73,0.00037976,8]
[394802833,1763967043674,-500.0,0.00037976,8]
[394802834,1763967043684,-500.0,0.00037976,8]
[394802835,1763967043693,-500.0,0.00037976,8]
[394802836,1763967043702,-542.05460198,0.00037976,8]
[394802837,1763967043711,-689.44,0.00037976,8]
[394802838,1763967043721,-500.0,0.00037976,2]
[394802839,1763967043730,-377.52883737,0.00037976,8]
[394802840,1763967043740,-176.7805254,0.00037976,8]
[394802841,1763967043750,-513.6180178,0.00037976,8]
[394802842,1763967043759,-500.0,0.00037976,8]
[394802843,1763967043768,-500.0,0.00037976,8]
[394802844,1763967043777,-500.0,0.00037976,8]
[394802845,1763967043788,-500.0,0.00037976,8]
[394802846,1763967043798,-500.0,0.00037976,8]
[394802847,1763967043807,-500.0,0.00037976,8]
[394802848,1763967043818,-500.0,0.00037976,8]
[394802849,1763967043827,-500.0,0.00037976,8]
[394802850,1763967043837,-500.0,0.00037976,8]
[394802851,1763967043846,-500.0,0.00037976,8]
[394802852,1763967043855,-520.37102484,0.00037976,8]
[394802853,1763967043866,-500.0,0.00037976,8]
[394802854,1763967043875,-500.0,0.00037976,8]
[394802855,1763967043884,-500.0,0.00037976,8]
[394802856,1763967043894,-500.0,0.00037976,8]
[394802857,1763967043903,-500.0,0.00037976,8]
[394802858,1763967043912,-500.0,0.00037976,8]
[394802859,1763967043923,-500.0,0.00037976,8]
[394802862,1763967043933,-500.0,0.00037976,8]
[394802864,1763967043943,-500.0,0.00037976,8]
[394802866,1763967043953,-500.0,0.00037976,8]
[394802868,1763967043963,-500.0,0.00037976,8]
[394802869,1763967043973,-580.28137021,0.00037976,8]
[394802871,1763967043982,-431.82232474,0.00037976,8]
[394802874,1763967043991,-500.0,0.00037976,8]
[394802877,1763967044001,-531.67014476,0.00037976,8]
[394802879,1763967044010,-41302.3086843,0.00037977,4]
[394802882,1763967044020,-500.0,0.00037978,7]
[394802885,1763967044029,-800.0,0.00037978,7]
[394802888,1763967044039,-504.30645096,0.0003798,8]
[394802889,1763967044049,-500.0,0.0003798,8]
[394802890,1763967044058,-500.0,0.0003798,8]
[394802891,1763967044067,-500.0,0.0003798,8]
[394802892,1763967044076,-500.0,0.0003798,8]
[394802893,1763967044085,-500.0,0.0003798,8]
[394802895,1763967044095,-568.85,0.0003798,8]
[394802896,1763967044105,-500.0,0.0003798,8]
[394802897,1763967044114,-164.78431013,0.0003798,8]
[394802898,1763967044124,-500.0,0.0003798,8]
[394802899,1763967044133,-1571.63,0.0003798,8]
[394802900,1763967044143,-500.0,0.0003798,8]
[394802901,1763967044153,-503.48688054,0.0003798,8]
[394802902,1763967044163,-500.0,0.0003798,8]
[394802903,1763967044172,-500.0,0.0003798,8]
[394802904,1763967044182,-500.0,0.0003798,8]
[394802905,1763967044192,-500.0,0.0003798,8]
[394802906,1763967044201,-500.0,0.0003798,8]
[394802907,1763967044211,-500.0,0.0003798,8]
[394802908,1763967044221,-500.0,0.0003798,8]
[394802909,1763967044230,-500.0,0.0003798,8]
[394802910,1763967044240,-500.0,0.0003798,8]
[394802911,1763967044250,-500.0,0.0003798,8]
[394802912,1763967044260,-500.0,0.0003798,8]
[394802913,1763967044269,-500.0,0.0003798,8]
[394802914,1763967044279,-500.0,0.0003798,8]
[394802915,1763967044290,-500.0,0.0003798,8]
[394802916,1763967044301,-500.0,0.0003798,8]
[394802917,1763967044442,-500.0,0.0003798,8]
[394802918,1763967044458,-504.16221475,0.0003798,8]
[394802919,1763967044468,-500.0,0.0003798,8]
[394802920,1763967044478,-290.45266139,0.0003798,8]
[394802921,1763967044488,-500.0,0.0003798,8]
[394802922,1763967044497,-503.81453196,0.0003798,8]
[394802923,1763967044506,-500.0,0.0003798,8]
[394802924,1763967044516,-500.0,0.0003798,8]
[394802925,1763967044525,-500.0,0.0003798,8]
[394802926,1763967044535,-500.0,0.0003798,8]
[394802927,1763967044545,-500.0,0.0003798,8]
[394802928,1763967044554,-500.0,0.0003798,8]
[394802929,1763967044564,-518.00528544,0.0003798,8]
[394802930,1763967044573,-500.0,0.0003798,8]
[394802931,1763967044583,-500.0,0.0003798,8]
[394802932,1763967044593,-500.0,0.0003798,8]
[394802933,1763967044602,-500.0,0.0003798,8]
[394802934,1763967044611,-500.0,0.0003798,8]
[394802935,1763967044621,-168.0,0.00037981,2]
[394802936,1763967044631,-500.0,0.00037986,8]
[394802937,1763967044640,-500.0,0.00037986,8]
[394802938,1763967044651,-500.0,0.00037986,8]
[394802939,1763967044661,-500.0,0.00037986,2]
[394802940,1763967044670,-429.1944891,0.00037986,2]
[394802941,1763967044681,-338.86143298,0.00037986,15]
[394802942,1763967044690,-248.64595862,0.00037986,15]
[394802943,1763967044700,-500.0,0.00037986,15]
[394802944,1763967044710,-620.46774657,0.00037986,15]
[394802945,1763967044720,-204.56195903,0.00037986,7]
[394802946,1763967044729,-619.30534181,0.00037986,15]
[394802947,1763967044739,-421.06398491,0.00037986,2]
[394802948,1763967044748,-183.02053666,0.00037986,7]
[394802949,1763967044758,-500.0,0.00037986,15]
[394802950,1763967044767,-500.0,0.00037986,15]
[394802951,1763967044777,-197.95867,0.00037986,15]
[394802952,1763967044787,-500.0,0.00037986,15]
[394802953,1763967044797,-500.0,0.00037986,15]
[394802954,1763967044806,-500.0,0.00037986,15]
[394802955,1763967044815,-500.0,0.00037986,15]
[394802956,1763967044824,-545.86227271,0.00037986,15]
[394802957,1763967044834,-500.0,0.00037986,15]
[394802958,1763967044843,-500.0,0.00037986,15]
[394802959,1763967044853,-500.0,0.00037986,15]
[394802960,1763967044862,-156.53595931,0.00037986,15]
[394802961,1763967044871,-500.0,0.00037986,15]
[394802962,1763967044880,-500.0,0.00037986,15]
[394802963,1763967044890,-500.0,0.00037986,15]
[394802964,1763967044899,-500.0,0.00037986,15]
[394802965,1763967044908,-500.0,0.00037986,15]
[394802966,1763967044918,-393.98469697,0.00037986,15]
[394802967,1763967044928,-393.98469697,0.00037986,15]
[394802968,1763967044937,-500.0,0.00037986,15]
[394802969,1763967044946,-500.0,0.00037986,15]
[394802970,1763967044955,-500.0,0.00037986,15]
[394802971,1763967044965,-606.01530303,0.00037986,15]
[394802972,1763967044974,-500.0,0.00037986,15]
[394802973,1763967044983,-500.0,0.00037986,15]
[394802974,1763967044992,-500.0,0.00037986,15]
[394802975,1763967045002,-500.0,0.00037986,15]
[394802976,1763967045011,-500.0,0.00037986,15]
[394802977,1763967045021,-500.0,0.00037986,15]
[394802978,1763967045030,-500.0,0.00037986,15]
[394802979,1763967045040,-500.0,0.00037986,15]
[394802980,1763967045058,-500.0,0.00037986,15]
[394802981,1763967045070,-500.0,0.00037986,15]
[394802982,1763967045080,-500.0,0.00037986,15]
[394802983,1763967045091,-500.0,0.00037986,15]
[394802984,1763967045101,-4062.0,0.00037987,5]
[394802985,1763967045111,-600.0,0.00037987,30]
[394802986,1763967045122,-4987.37059809,0.00037987,2]
[394802987,1763967045270,-82062.63937401,0.00037987,2]
[394802988,1763967045283,-293.0707646,0.00037987,2]
[394802989,1763967045299,-14015.02614869,0.00037987,2]
[394802990,1763967045311,-978.62959381,0.00037987,2]
[394802991,1763967045333,-1600.94005876,0.00037987,2]
[394802992,1763967045349,-426.78462315,0.00036296,2]
[394802993,1763967045359,-7.67702851,0.00037987,2]
[394802994,1763967045371,-533.86183124,0.00037987,2]
[394802995,1763967045382,-3030.275,0.00037987,2]
[394802996,1763967045393,-2485.8482738,0.00037987,2]
[394803002,1763967047567,-500.0,0.00037976,8]
[394803003,1763967047577,-199.56051591,0.0003798,8]
[394803004,1763967047586,-650004.66132849,0.00037987,2]
[394803005,1763967047596,-1990.44,0.00037998,120]
[394803006,1763967047605,-1368.61305921,0.00038,30]
[394803007,1763967047616,-1990.44,0.00038037,120]
[394803008,1763967047625,-1990.44,0.00038078,120]
[394803009,1763967047634,-500.0,0.00038081,8]
[394803010,1763967047643,-1554.11,0.00038081,2]
[394803011,1763967047655,-500.0,0.00038082,8]
[394803012,1763967047664,-897.72,0.00038082,8]
[394803013,1763967047673,-500.0,0.00038082,120]
[394803014,1763967047682,-1795.75255149,0.00038102,4]
[394803015,1763967047691,-500.0,0.00038112,8]
[394803016,1763967047701,-500.0,0.00038112,8]
[394803017,1763967047710,-1990.44,0.00038122,120]
[394803018,1763967047720,-1990.44,0.0003817,120]
[394803019,1763967047729,-1990.44,0.00038222,120]
[394803020,1763967047739,-4764.06606914,0.00038233,2]
[394803021,1763967047748,-168.49919826,0.00038233,15]
[394803022,1763967047757,-1795.75255149,0.00038244,4]
[394803023,1763967047766,-3250.33,0.00038249,8]
[394803024,1763967047775,-500.0,0.00038249,8]
[394803025,1763967047788,-194.81400507,0.00038249,8]
[394803026,1763967047798,-500.0,0.00038249,8]
[394803027,1763967047807,-500.0,0.00038249,8]
[394803028,1763967047817,-500.0,0.00038249,8]
[394803029,1763967047826,-500.0,0.00038249,8]
[394803030,1763967047835,-500.0,0.0003825,8]
[394803031,1763967047844,-500.0,0.0003825,8]
[394803032,1763967047854,-500.0,0.0003825,8]
[394803033,1763967047863,-500.0,0.0003825,8]
[394803034,1763967047873,-188.55,0.0003825,8]
[394803035,1763967047882,-213.59,0.0003825,8]
[394803036,1763967047891,-500.0,0.0003825,8]
[394803037,1763967047901,-500.0,0.0003825,8]
[394803038,1763967047911,-500.0,0.0003825,8]
[394803039,1763967047920,-1251.15,0.0003825,8]
[394803040,1763967047930,-188.00658998,0.0003825,8]
[394803041,1763967047939,-402.8,0.0003825,8]
[394803042,1763967047948,-1813.73,0.0003825,8]
[394803043,1763967047957,-324.54,0.0003825,8]
[394803044,1763967047966,-689.44,0.0003825,8]
[394803045,1763967047975,-500.0,0.0003825,2]
[394803046,1763967047984,-500.0,0.0003825,8]
[394803047,1763967047994,-500.0,0.0003825,8]
[394803048,1763967048003,-538.01014075,0.0003825,8]
[394803049,1763967048012,-500.0,0.0003825,8]
[394803050,1763967048021,-163.79,0.0003825,8]
[394803051,1763967048031,-570.1414069,0.0003825,8]
[394803052,1763967048040,-309.19,0.0003825,8]
[394803053,1763967048050,-369.79729425,0.0003825,8]
[394803054,1763967048059,-500.0,0.00038254,8]
[394803055,1763967048068,-568.85,0.00038254,8]
[394803056,1763967048085,-500.0,0.00038254,8]
[394803057,1763967048094,-548.66,0.00038254,8]
[394803058,1763967048103,-1571.63,0.00038254,8]
[394803059,1763967048113,-349.28,0.00038254,8]
[394803060,1763967048122,-297.31,0.00038254,8]
[394803061,1763967048133,-500.0,0.00038254,8]
[394803062,1763967048142,-500.0,0.00038254,8]
[394803063,1763967048152,-406.66820752,0.00038254,8]
[394803064,1763967048161,-500.0,0.00038254,8]
[394803065,1763967048170,-500.0,0.00038254,8]
[394803066,1763967048179,-231.96,0.00038254,8]
[394803067,1763967048188,-601.18326279,0.00038254,8]
[394803068,1763967048197,-600.0,0.00038261,30]
[394803069,1763967048206,-611.666,0.00038273,2]
[394803070,1763967048215,-576.0,0.00038273,2]
[394803071,1763967048225,-1320.0,0.00038273,2]
[394803072,1763967048234,-822.0,0.00038273,2]
[394803073,1763967048243,-1601.0,0.00038273,2]
[394803074,1763967048252,-659.0,0.00038273,2]
[394803075,1763967048261,-1256.0,0.00038273,2]
[394803076,1763967048270,-2660.0,0.00038273,2]
[394803077,1763967048280,-6499.0,0.00038273,2]
[394803078,1763967048290,-1990.44,0.00038279,120]
[394803079,1763967048301,-1990.44,0.00038342,120]
[394803080,1763967048311,-1795.75255149,0.00038346,4]
[394803081,1763967048319,-500.0,0.00038355,8]
[394803082,1763967048331,-1554.11,0.00038355,2]
[394803083,1763967048340,-493.87885974,0.00038356,8]
[394803084,1763967048349,-897.72,0.00038356,8]
[394803085,1763967048358,-500.0,0.00038356,120]
[394803086,1763967048369,-161.63698633,0.00038356,2]
[394803087,1763967048377,-300.0,0.00038378,2]
[394803088,1763967048386,-3264.26574073,0.00038385,2]
[394803089,1763967048395,-500.0,0.00038386,8]
[394803090,1763967048405,-500.0,0.00038386,8]
[394803091,1763967048413,-1990.44,0.00038412,120]
[394803092,1763967048422,-168.83545478,0.00038482,2]
[394803093,1763967048431,-200.0,0.0003849,20]
[394803094,1763967048439,-1990.44,0.00038492,120]
[394803095,1763967048448,-1000.0,0.0003852,3]
[394803096,1763967048457,-1000.0,0.00038521,5]
[394803097,1763967048466,-1000.0,0.00038521,5]
[394803098,1763967048474,-3250.33,0.00038523,8]
[394803099,1763967048483,-500.0,0.00038523,8]
[394803100,1763967048492,-500.0,0.00038523,8]
[394803101,1763967048501,-500.0,0.00038524,8]
[394803102,1763967048510,-500.0,0.00038524,8]
[394803103,1763967048519,-648.67,0.00038524,8]
[394803104,1763967048527,-500.0,0.00038524,8]
[394803105,1763967048537,-500.0,0.00038524,8]
[394803106,1763967048545,-1251.15,0.00038524,8]
[394803107,1763967048554,-1813.73,0.00038524,8]
[394803108,1763967048567,-689.44,0.00038524,8]
[394803109,1763967048575,-500.0,0.00038524,2]
[394803110,1763967048585,-500.0,0.00038524,8]
[394803111,1763967048594,-500.0,0.00038524,8]
[394803112,1763967048605,-500.0,0.00038524,8]
[394803113,1763967048614,-500.0,0.00038528,8]
[394803114,1763967048624,-568.85,0.00038528,8]
[394803115,1763967048634,-500.0,0.00038528,8]
[394803116,1763967048643,-1571.63,0.00038528,8]
[394803117,1763967048652,-500.0,0.00038528,8]
[394803118,1763967048661,-500.0,0.00038528,8]
[394803119,1763967048671,-224.59,0.00038528,8]
[394803120,1763967048680,-421.42,0.00038535,30]